[Event "Titled Tuesday Blitz August 31 2021"]
[White "Shishkov, Andrei"]
[Black "Shimelkov, Vasiliy"]
[WhiteFideId "4500563"]
[BlackFideId "13701630"]
[WhiteElo "2322"]
[BlackElo "2073"]
[Result "0-1"]
[Round "07"]
[TimeControl "180+1"]
[Date "2021.08.31"]
[WhiteClock "0:00:09"]
[BlackClock "0:00:53"]

1. d4 {[%clk 0:03:00]}  d5 {[%clk 0:02:59]} 2. c4 {[%clk 0:03:01]}  e6 {[%clk 0:02:59]} 3. Nc3 {[%clk 0:03:00]}  Nf6 {[%clk 0:02:59]} 4. cxd5 {[%clk 0:03:00]}  exd5 {[%clk 0:02:59]} 5. Bg5 {[%clk 0:03:00]}  Be7 {[%clk 0:02:59]} 6. e3 {[%clk 0:03:00]}  h6 {[%clk 0:02:59]} 7. Bh4 {[%clk 0:02:59]}  O-O {[%clk 0:02:58]} 8. Bd3 {[%clk 0:02:59]}  b6 {[%clk 0:02:57]} 9. Nf3 {[%clk 0:02:57]}  Bb7 {[%clk 0:02:56]} 10. O-O {[%clk 0:02:57]}  c5 {[%clk 0:02:55]} 11. dxc5 {[%clk 0:02:56]}  bxc5 {[%clk 0:02:54]} 12. Rc1 {[%clk 0:02:53]}  Nbd7 {[%clk 0:02:53]} 13. Qa4 {[%clk 0:02:34]}  Nb6 {[%clk 0:02:48]} 14. Qa5 {[%clk 0:02:33]}  d4 {[%clk 0:02:43]} 15. Bxf6 {[%clk 0:02:14]}  Bxf6 {[%clk 0:02:40]} 16. Ne4 {[%clk 0:02:13]}  c4 {[%clk 0:02:24]} 17. Nxf6+ {[%clk 0:01:34]}  Qxf6 {[%clk 0:02:20]} 18. Bxc4 {[%clk 0:01:33]}  Bxf3 {[%clk 0:02:16]} 19. gxf3 {[%clk 0:01:32]}  Qxf3 {[%clk 0:02:04]} 20. exd4 {[%clk 0:01:13]}  Rad8 {[%clk 0:01:56]} 21. Rfd1 {[%clk 0:01:01]}  Nxc4 {[%clk 0:01:45]} 22. Qc3 {[%clk 0:00:50]}  Qxc3 {[%clk 0:01:39]} 23. Rxc3 {[%clk 0:00:51]}  Nxb2 {[%clk 0:01:37]} 24. Rd2 {[%clk 0:00:47]}  Rb8 {[%clk 0:01:34]} 25. Rb3 {[%clk 0:00:41]}  Nc4 {[%clk 0:01:33]} 26. Rc2 {[%clk 0:00:41]}  Rxb3 {[%clk 0:01:30]} 27. axb3 {[%clk 0:00:40]}  Nb6 {[%clk 0:01:29]} 28. Rc7 {[%clk 0:00:39]}  Ra8 {[%clk 0:01:28]} 29. b4 {[%clk 0:00:36]}  Nd5 {[%clk 0:01:24]} 30. Rb7 {[%clk 0:00:34]}  a6 {[%clk 0:01:13]} 31. Kg2 {[%clk 0:00:28]}  Rd8 {[%clk 0:01:08]} 32. Kf3 {[%clk 0:00:27]}  Rd6 {[%clk 0:01:05]} 33. Ke4 {[%clk 0:00:24]}  Nc3+ {[%clk 0:00:58]} 34. Ke3 {[%clk 0:00:14]}  Nb5 {[%clk 0:00:57]} 35. Rb8+ {[%clk 0:00:12]}  Kh7 {[%clk 0:00:57]} 36. Rb7 {[%clk 0:00:11]}  Kg6 {[%clk 0:00:55]} 37. f4 {[%clk 0:00:09]}  Nxd4 {[%clk 0:00:53]} 0-1


[Site "https://www.chess.com"]

[Event "Titled Tuesday Blitz August 31 2021"]
[White "Suarez Uriel, Adrian"]
[Black "Gutenev, Alexander"]
[WhiteFideId "22230874"]
[BlackFideId "4195540"]
[WhiteElo "2503"]
[BlackElo "2672"]
[Result "0-1"]
[Round "07"]
[TimeControl "180+1"]
[Date "2021.08.31"]
[WhiteClock "0:01:47"]
[BlackClock "0:01:53"]

1. e4 {[%clk 0:03:00]}  c5 {[%clk 0:02:59]} 2. Ne2 {[%clk 0:03:00]}  Nc6 {[%clk 0:02:58]} 3. Nbc3 {[%clk 0:02:59]}  Nf6 {[%clk 0:02:56]} 4. d4 {[%clk 0:02:59]}  cxd4 {[%clk 0:02:56]} 5. Nxd4 {[%clk 0:03:00]}  d6 {[%clk 0:02:57]} 6. Bg5 {[%clk 0:02:57]}  e6 {[%clk 0:02:57]} 7. Qd2 {[%clk 0:02:57]}  a6 {[%clk 0:02:57]} 8. O-O-O {[%clk 0:02:57]}  Bd7 {[%clk 0:02:57]} 9. f4 {[%clk 0:02:55]}  h6 {[%clk 0:02:57]} 10. Bxf6 {[%clk 0:02:54]}  Qxf6 {[%clk 0:02:56]} 11. Nxc6 {[%clk 0:02:53]}  Bxc6 {[%clk 0:02:56]} 12. Qe1 {[%clk 0:02:51]}  Qxf4+ {[%clk 0:02:52]} 13. Kb1 {[%clk 0:02:49]}  g6 {[%clk 0:02:45]} 14. g3 {[%clk 0:02:49]}  Qe5 {[%clk 0:02:44]} 15. h4 {[%clk 0:02:40]}  Bg7 {[%clk 0:02:42]} 16. h5 {[%clk 0:02:41]}  g5 {[%clk 0:02:40]} 17. Bd3 {[%clk 0:02:38]}  b5 {[%clk 0:02:36]} 18. Rd2 {[%clk 0:02:38]}  O-O {[%clk 0:02:33]} 19. Rf1 {[%clk 0:02:33]}  b4 {[%clk 0:02:31]} 20. Nd1 {[%clk 0:02:33]}  a5 {[%clk 0:02:30]} 21. Rdf2 {[%clk 0:02:29]}  a4 {[%clk 0:02:28]} 22. Qxb4 {[%clk 0:02:25]}  a3 {[%clk 0:02:21]} 23. Qc3 {[%clk 0:02:15]}  Qxc3 {[%clk 0:02:20]} 24. Nxc3 {[%clk 0:02:08]}  axb2 {[%clk 0:02:08]} 25. Nd1 {[%clk 0:02:07]}  Rxa2 {[%clk 0:02:05]} 26. c3 {[%clk 0:01:57]}  Rfa8 {[%clk 0:02:02]} 27. Rxb2 {[%clk 0:01:55]}  Ra1+ {[%clk 0:01:59]} 28. Kc2 {[%clk 0:01:54]}  Ba4+ {[%clk 0:01:56]} 29. Kd2 {[%clk 0:01:54]}  Bxd1 {[%clk 0:01:56]} 30. Rxd1 {[%clk 0:01:53]}  Bxc3+ {[%clk 0:01:56]} 31. Kxc3 {[%clk 0:01:49]}  Rxd1 {[%clk 0:01:56]} 32. Kd4 {[%clk 0:01:47]}  Ra3 {[%clk 0:01:53]} 0-1


[Site "https://www.chess.com"]

[Event "Titled Tuesday Blitz August 31 2021"]
[White "Svane, Frederik"]
[Black "De Silva, L M S T"]
[WhiteFideId "12923044"]
[BlackFideId "9953698"]
[WhiteElo "2459"]
[BlackElo "1621"]
[Result "1-0"]
[Round "07"]
[TimeControl "180+1"]
[Date "2021.08.31"]
[WhiteClock "0:00:15"]
[BlackClock "0:00:02"]

1. e4 {[%clk 0:03:00]}  e5 {[%clk 0:02:57]} 2. Nf3 {[%clk 0:03:00]}  Nc6 {[%clk 0:02:57]} 3. Bb5 {[%clk 0:03:01]}  a6 {[%clk 0:02:58]} 4. Ba4 {[%clk 0:03:00]}  Nf6 {[%clk 0:02:58]} 5. O-O {[%clk 0:03:01]}  Be7 {[%clk 0:02:58]} 6. d3 {[%clk 0:03:01]}  b5 {[%clk 0:02:58]} 7. Bb3 {[%clk 0:03:02]}  d6 {[%clk 0:02:59]} 8. a3 {[%clk 0:03:03]}  O-O {[%clk 0:02:59]} 9. Nc3 {[%clk 0:03:03]}  h6 {[%clk 0:02:54]} 10. h3 {[%clk 0:03:02]}  Bb7 {[%clk 0:02:51]} 11. Ne2 {[%clk 0:03:00]}  Nd4 {[%clk 0:02:48]} 12. Nexd4 {[%clk 0:02:58]}  exd4 {[%clk 0:02:49]} 13. Nxd4 {[%clk 0:02:59]}  c5 {[%clk 0:02:44]} 14. Nf5 {[%clk 0:02:58]}  c4 {[%clk 0:02:44]} 15. dxc4 {[%clk 0:02:57]}  Bxe4 {[%clk 0:02:41]} 16. Nxe7+ {[%clk 0:02:55]}  Qxe7 {[%clk 0:02:39]} 17. cxb5 {[%clk 0:02:55]}  axb5 {[%clk 0:02:38]} 18. Be3 {[%clk 0:02:40]}  Rad8 {[%clk 0:02:30]} 19. Bd4 {[%clk 0:02:37]}  Bg6 {[%clk 0:02:02]} 20. Re1 {[%clk 0:02:35]}  Qd7 {[%clk 0:02:02]} 21. Bxf6 {[%clk 0:02:34]}  gxf6 {[%clk 0:02:03]} 22. Qd2 {[%clk 0:02:30]}  Kg7 {[%clk 0:02:03]} 23. Qf4 {[%clk 0:02:29]}  d5 {[%clk 0:02:02]} 24. Rad1 {[%clk 0:02:24]}  d4 {[%clk 0:02:00]} 25. Rd2 {[%clk 0:02:25]}  Qd6 {[%clk 0:01:23]} 26. Qxd6 {[%clk 0:01:44]}  Rxd6 {[%clk 0:01:23]} 27. c3 {[%clk 0:01:44]}  d3 {[%clk 0:01:22]} 28. Bd1 {[%clk 0:01:43]}  Rfd8 {[%clk 0:01:20]} 29. Bf3 {[%clk 0:01:42]}  h5 {[%clk 0:01:18]} 30. h4 {[%clk 0:01:42]}  Kh6 {[%clk 0:01:17]} 31. Kh2 {[%clk 0:01:34]}  R8d7 {[%clk 0:01:14]} 32. Re3 {[%clk 0:01:33]}  Rd8 {[%clk 0:01:14]} 33. Kg3 {[%clk 0:01:21]}  Kg7 {[%clk 0:01:13]} 34. Kf4 {[%clk 0:01:18]}  Kh6 {[%clk 0:01:13]} 35. Be4 {[%clk 0:01:15]}  Bxe4 {[%clk 0:00:37]} 36. Rxe4 {[%clk 0:01:12]}  Kg6 {[%clk 0:00:36]} 37. Ke3 {[%clk 0:01:11]}  f5 {[%clk 0:00:28]} 38. Rd4 {[%clk 0:01:10]}  Re6+ {[%clk 0:00:25]} 39. Kxd3 {[%clk 0:01:10]}  Rde8 {[%clk 0:00:25]} 40. Kc2 {[%clk 0:01:04]}  Re1 {[%clk 0:00:24]} 41. g3 {[%clk 0:01:03]}  Rb8 {[%clk 0:00:21]} 42. Kb3 {[%clk 0:01:03]}  f6 {[%clk 0:00:21]} 43. Kb4 {[%clk 0:01:03]}  Re6 {[%clk 0:00:20]} 44. Rd5 {[%clk 0:00:58]}  Re4+ {[%clk 0:00:21]} 45. R2d4 {[%clk 0:00:58]}  Re2 {[%clk 0:00:21]} 46. Rd2 {[%clk 0:00:58]}  Re4+ {[%clk 0:00:22]} 47. Kb3 {[%clk 0:00:58]}  f4 {[%clk 0:00:21]} 48. R5d4 {[%clk 0:00:56]}  Rbe8 {[%clk 0:00:12]} 49. Rxe4 {[%clk 0:00:36]}  Rxe4 {[%clk 0:00:13]} 50. Rd4 {[%clk 0:00:37]}  Kf5 {[%clk 0:00:03]} 51. Rxe4 {[%clk 0:00:14]}  Kxe4 {[%clk 0:00:04]} 52. c4 {[%clk 0:00:15]}  fxg3 {[%clk 0:00:03]} 53. fxg3 {[%clk 0:00:15]}  Kf3 {[%clk 0:00:04]} 54. cxb5 {[%clk 0:00:14]}  Kxg3 {[%clk 0:00:05]} 55. b6 {[%clk 0:00:15]}  f5 {[%clk 0:00:05]} 56. b7 {[%clk 0:00:16]}  f4 {[%clk 0:00:05]} 57. b8=Q {[%clk 0:00:17]}  Kg4 {[%clk 0:00:05]} 58. a4 {[%clk 0:00:16]}  f3 {[%clk 0:00:05]} 59. a5 {[%clk 0:00:17]}  f2 {[%clk 0:00:04]} 60. Qf8 {[%clk 0:00:17]}  Kg3 {[%clk 0:00:04]} 61. a6 {[%clk 0:00:17]}  Kg2 {[%clk 0:00:04]} 62. a7 {[%clk 0:00:16]}  f1=Q {[%clk 0:00:02]} 63. Qxf1+ {[%clk 0:00:15]}  Kg3 {[%clk 0:00:02]} 64. a8=Q {[%clk 0:00:15]}  Kh2 {[%clk 0:00:02]} 65. Qag2# {[%clk 0:00:15]} 1-0


[Site "https://www.chess.com"]

[Event "Titled Tuesday Blitz August 31 2021"]
[White "Terry, Renato"]
[Black "Borsuk, Konstantin"]
[WhiteFideId "3803457"]
[BlackFideId "14113406"]
[WhiteElo "2889"]
[BlackElo "2617"]
[Result "1-0"]
[Round "07"]
[TimeControl "180+1"]
[Date "2021.08.31"]
[WhiteClock "0:00:09"]
[BlackClock "0:00:04"]

1. d4 {[%clk 0:03:00]}  Nf6 {[%clk 0:02:59]} 2. Bg5 {[%clk 0:03:01]}  e6 {[%clk 0:02:58]} 3. e4 {[%clk 0:03:01]}  h6 {[%clk 0:02:58]} 4. Bxf6 {[%clk 0:03:02]}  Qxf6 {[%clk 0:02:59]} 5. c3 {[%clk 0:03:03]}  d6 {[%clk 0:02:56]} 6. Bd3 {[%clk 0:03:03]}  g6 {[%clk 0:02:51]} 7. Ne2 {[%clk 0:03:03]}  Bg7 {[%clk 0:02:51]} 8. O-O {[%clk 0:03:04]}  c5 {[%clk 0:02:46]} 9. dxc5 {[%clk 0:03:00]}  dxc5 {[%clk 0:02:46]} 10. f4 {[%clk 0:03:01]}  e5 {[%clk 0:02:43]} 11. f5 {[%clk 0:02:47]}  Qg5 {[%clk 0:02:21]} 12. fxg6 {[%clk 0:02:41]}  fxg6 {[%clk 0:02:20]} 13. Na3 {[%clk 0:02:34]}  Nc6 {[%clk 0:01:10]} 14. Nb5 {[%clk 0:02:26]}  Bh3 {[%clk 0:00:21]} 15. Nd6+ {[%clk 0:01:26]}  Ke7 {[%clk 0:00:21]} 16. Ng3 {[%clk 0:01:27]}  Kxd6 {[%clk 0:00:20]} 17. Rf7 {[%clk 0:01:21]}  Be6 {[%clk 0:00:07]} 18. Bc4+ {[%clk 0:01:07]}  Nd4 {[%clk 0:00:07]} 19. Bxe6 {[%clk 0:01:07]}  Kxe6 {[%clk 0:00:06]} 20. Rxg7 {[%clk 0:01:08]}  Kf6 {[%clk 0:00:02]} 21. Rxb7 {[%clk 0:01:06]}  Qe3+ {[%clk 0:00:02]} 22. Kh1 {[%clk 0:01:06]}  Ne6 {[%clk 0:00:03]} 23. Qd7 {[%clk 0:01:01]}  Rae8 {[%clk 0:00:02]} 24. Rf1+ {[%clk 0:01:01]}  Kg5 {[%clk 0:00:03]} 25. Qd1 {[%clk 0:00:14]}  Nf4 {[%clk 0:00:02]} 26. Rf3 {[%clk 0:00:09]}  Rd8 {[%clk 0:00:02]} 27. h4+ {[%clk 0:00:08]}  Kxh4 {[%clk 0:00:02]} 28. Qxd8+ {[%clk 0:00:08]}  Rxd8 {[%clk 0:00:02]} 29. Rxe3 {[%clk 0:00:09]}  Rd1+ {[%clk 0:00:03]} 30. Kh2 {[%clk 0:00:09]}  g5 {[%clk 0:00:03]} 31. Nf5+ {[%clk 0:00:09]}  Kg4 {[%clk 0:00:04]} 32. Rg3+ {[%clk 0:00:10]}  Kh5 {[%clk 0:00:04]} 33. Rh7 {[%clk 0:00:09]} 1-0


[Site "https://www.chess.com"]

[Event "Titled Tuesday Blitz August 31 2021"]
[White "Ulko, Jaroslav"]
[Black "Espinosa, Pedro"]
[WhiteFideId "4116658"]
[BlackFideId "30921066"]
[WhiteElo "2304"]
[BlackElo "1673"]
[Result "1-0"]
[Round "07"]
[TimeControl "180+1"]
[Date "2021.08.31"]
[WhiteClock "0:01:31"]
[BlackClock "0:00:37"]

1. d4 {[%clk 0:03:00]}  d5 {[%clk 0:02:59]} 2. c4 {[%clk 0:03:00]}  c6 {[%clk 0:02:59]} 3. Nf3 {[%clk 0:03:00]}  Nf6 {[%clk 0:02:59]} 4. Nc3 {[%clk 0:03:01]}  e6 {[%clk 0:02:57]} 5. Bg5 {[%clk 0:02:59]}  Nbd7 {[%clk 0:02:54]} 6. e3 {[%clk 0:02:59]}  Qa5 {[%clk 0:02:54]} 7. cxd5 {[%clk 0:02:59]}  exd5 {[%clk 0:02:52]} 8. Bd3 {[%clk 0:02:57]}  Bd6 {[%clk 0:02:52]} 9. Qc2 {[%clk 0:02:55]}  h6 {[%clk 0:02:51]} 10. Bh4 {[%clk 0:02:55]}  O-O {[%clk 0:02:50]} 11. O-O {[%clk 0:02:55]}  Re8 {[%clk 0:02:44]} 12. a3 {[%clk 0:02:54]}  a6 {[%clk 0:02:19]} 13. Rfc1 {[%clk 0:02:45]}  g5 {[%clk 0:02:11]} 14. Bg3 {[%clk 0:02:45]}  Bxg3 {[%clk 0:02:10]} 15. hxg3 {[%clk 0:02:46]}  Nf8 {[%clk 0:02:09]} 16. Ne5 {[%clk 0:02:45]}  Be6 {[%clk 0:02:05]} 17. f4 {[%clk 0:02:44]}  N6d7 {[%clk 0:01:54]} 18. Rf1 {[%clk 0:02:28]}  Nxe5 {[%clk 0:01:53]} 19. fxe5 {[%clk 0:02:28]}  Kg7 {[%clk 0:01:47]} 20. Rf6 {[%clk 0:02:24]}  Nd7 {[%clk 0:01:46]} 21. Rf2 {[%clk 0:02:05]}  c5 {[%clk 0:01:35]} 22. Raf1 {[%clk 0:02:02]}  Qb6 {[%clk 0:01:25]} 23. Bf5 {[%clk 0:01:45]}  Re7 {[%clk 0:01:16]} 24. Bxe6 {[%clk 0:01:36]}  Qxe6 {[%clk 0:01:14]} 25. Rf6 {[%clk 0:01:35]}  Nxf6 {[%clk 0:00:48]} 26. exf6+ {[%clk 0:01:36]}  Kg8 {[%clk 0:00:48]} 27. fxe7 {[%clk 0:01:36]}  Qxe3+ {[%clk 0:00:48]} 28. Kh2 {[%clk 0:01:34]}  Qxd4 {[%clk 0:00:42]} 29. Qf5 {[%clk 0:01:31]}  Qg7 {[%clk 0:00:37]} 30. Nxd5 {[%clk 0:01:31]} 1-0


[Site "https://www.chess.com"]

[Event "Titled Tuesday Blitz August 31 2021"]
[White "Urazayev, Arystanbek"]
[Black "Firat, Burak"]
[WhiteFideId "13709810"]
[BlackFideId "6305881"]
[WhiteElo "2767"]
[BlackElo "2587"]
[Result "0-1"]
[Round "07"]
[TimeControl "180+1"]
[Date "2021.08.31"]
[WhiteClock "0:00:01"]
[BlackClock "0:00:18"]

1. c4 {[%clk 0:03:00]}  e5 {[%clk 0:02:57]} 2. Nf3 {[%clk 0:03:01]}  Nc6 {[%clk 0:02:57]} 3. Nc3 {[%clk 0:03:00]}  Nf6 {[%clk 0:02:57]} 4. e3 {[%clk 0:03:00]}  g6 {[%clk 0:02:54]} 5. d4 {[%clk 0:03:00]}  d6 {[%clk 0:02:52]} 6. Be2 {[%clk 0:02:57]}  Bg7 {[%clk 0:02:52]} 7. O-O {[%clk 0:02:58]}  O-O {[%clk 0:02:52]} 8. b3 {[%clk 0:02:56]}  Re8 {[%clk 0:02:52]} 9. Bb2 {[%clk 0:02:55]}  exd4 {[%clk 0:02:52]} 10. Nxd4 {[%clk 0:02:51]}  Nxd4 {[%clk 0:02:50]} 11. Qxd4 {[%clk 0:02:47]}  Ne4 {[%clk 0:02:42]} 12. Qxg7+ {[%clk 0:02:43]}  Kxg7 {[%clk 0:02:43]} 13. Nxe4+ {[%clk 0:02:43]}  Kf8 {[%clk 0:02:43]} 14. Nf6 {[%clk 0:02:35]}  Re6 {[%clk 0:02:43]} 15. Nd5 {[%clk 0:02:29]}  c6 {[%clk 0:02:32]} 16. Nf4 {[%clk 0:02:28]}  Re8 {[%clk 0:02:27]} 17. Rfd1 {[%clk 0:02:28]}  Qe7 {[%clk 0:01:53]} 18. Rd2 {[%clk 0:02:26]}  Be6 {[%clk 0:01:47]} 19. Rad1 {[%clk 0:02:24]}  Rad8 {[%clk 0:01:47]} 20. Ba3 {[%clk 0:02:22]}  c5 {[%clk 0:01:47]} 21. Bb2 {[%clk 0:02:22]}  Kg8 {[%clk 0:01:46]} 22. Bf3 {[%clk 0:02:22]}  a6 {[%clk 0:01:42]} 23. g3 {[%clk 0:02:14]}  b5 {[%clk 0:01:36]} 24. Nd5 {[%clk 0:01:58]}  Bxd5 {[%clk 0:01:35]} 25. Bxd5 {[%clk 0:01:59]}  Rb8 {[%clk 0:01:26]} 26. h4 {[%clk 0:01:56]}  h5 {[%clk 0:01:25]} 27. Bc3 {[%clk 0:01:49]}  b4 {[%clk 0:01:15]} 28. Bb2 {[%clk 0:01:48]}  a5 {[%clk 0:01:15]} 29. e4 {[%clk 0:01:41]}  Kh7 {[%clk 0:01:12]} 30. f4 {[%clk 0:01:40]}  a4 {[%clk 0:01:03]} 31. f5 {[%clk 0:01:32]}  axb3 {[%clk 0:01:02]} 32. Rf2 {[%clk 0:01:33]}  bxa2 {[%clk 0:00:57]} 33. fxg6+ {[%clk 0:01:30]}  fxg6 {[%clk 0:00:57]} 34. e5 {[%clk 0:00:20]}  Rf8 {[%clk 0:00:47]} 35. Rdf1 {[%clk 0:00:12]}  Rxf2 {[%clk 0:00:40]} 36. Rxf2 {[%clk 0:00:12]}  Rf8 {[%clk 0:00:38]} 37. Re2 {[%clk 0:00:06]}  Qxe5 {[%clk 0:00:28]} 38. Bxe5 {[%clk 0:00:04]}  dxe5 {[%clk 0:00:29]} 39. Rxa2 {[%clk 0:00:05]}  g5 {[%clk 0:00:26]} 40. Ra5 {[%clk 0:00:04]}  gxh4 {[%clk 0:00:18]} 41. gxh4 {[%clk 0:00:04]}  Rf4 {[%clk 0:00:19]} 42. Rxc5 {[%clk 0:00:04]}  Rxh4 {[%clk 0:00:18]} 43. Rb5 {[%clk 0:00:05]}  Kg6 {[%clk 0:00:19]} 44. Rxb4 {[%clk 0:00:05]}  Kf5 {[%clk 0:00:20]} 45. Kf2 {[%clk 0:00:05]}  Rd4 {[%clk 0:00:20]} 46. Rb8 {[%clk 0:00:05]}  Rd2+ {[%clk 0:00:18]} 47. Ke3 {[%clk 0:00:05]}  Ra2 {[%clk 0:00:18]} 48. Rf8+ {[%clk 0:00:05]}  Kg6 {[%clk 0:00:19]} 49. Ke4 {[%clk 0:00:05]}  Re2+ {[%clk 0:00:19]} 50. Kd3 {[%clk 0:00:05]}  Ra2 {[%clk 0:00:20]} 51. c5 {[%clk 0:00:05]}  Ra4 {[%clk 0:00:20]} 52. Bc4 {[%clk 0:00:03]}  Kg7 {[%clk 0:00:20]} 53. Rf7+ {[%clk 0:00:03]}  Kg6 {[%clk 0:00:21]} 54. Rb7 {[%clk 0:00:04]}  e4+ {[%clk 0:00:19]} 55. Kc3 {[%clk 0:00:03]}  e3 {[%clk 0:00:20]} 56. c6 {[%clk 0:00:03]}  Kf6 {[%clk 0:00:18]} 57. Rf7+ {[%clk 0:00:02]}  Ke5 {[%clk 0:00:18]} 58. Re7+ {[%clk 0:00:03]}  Kd6 {[%clk 0:00:18]} 59. Re6+ {[%clk 0:00:01]}  Kc7 {[%clk 0:00:18]} 0-1


[Site "https://www.chess.com"]

[Event "Titled Tuesday Blitz August 31 2021"]
[White "Vachier-Lagrave, Maxime"]
[Black "Wagner, Dennis"]
[WhiteFideId "623539"]
[BlackFideId "24650684"]
[WhiteElo "2850"]
[BlackElo "2355"]
[Result "1-0"]
[Round "07"]
[TimeControl "180+1"]
[Date "2021.08.31"]
[WhiteClock "0:02:07"]
[BlackClock "0:00:18"]

1. g3 {[%clk 0:03:00]}  g6 {[%clk 0:02:58]} 2. Nf3 {[%clk 0:02:59]}  Bg7 {[%clk 0:02:57]} 3. d4 {[%clk 0:02:57]}  d5 {[%clk 0:02:56]} 4. c4 {[%clk 0:02:56]}  c6 {[%clk 0:02:56]} 5. Bg2 {[%clk 0:02:56]}  Nf6 {[%clk 0:02:56]} 6. Ne5 {[%clk 0:02:56]}  O-O {[%clk 0:02:55]} 7. cxd5 {[%clk 0:02:55]}  cxd5 {[%clk 0:02:56]} 8. Nc3 {[%clk 0:02:55]}  Bf5 {[%clk 0:02:56]} 9. O-O {[%clk 0:02:54]}  Ne4 {[%clk 0:02:57]} 10. Qb3 {[%clk 0:02:51]}  Nc6 {[%clk 0:02:53]} 11. Nxc6 {[%clk 0:02:47]}  bxc6 {[%clk 0:02:52]} 12. Be3 {[%clk 0:02:42]}  Rb8 {[%clk 0:02:41]} 13. Qa3 {[%clk 0:02:36]}  Qd6 {[%clk 0:02:42]} 14. Qxd6 {[%clk 0:02:35]}  exd6 {[%clk 0:02:37]} 15. Nxe4 {[%clk 0:02:34]}  dxe4 {[%clk 0:02:36]} 16. b3 {[%clk 0:02:34]}  Rfc8 {[%clk 0:02:17]} 17. Rac1 {[%clk 0:02:34]}  Kf8 {[%clk 0:02:02]} 18. Rc2 {[%clk 0:02:32]}  Ke7 {[%clk 0:02:02]} 19. Rfc1 {[%clk 0:02:31]}  Kd7 {[%clk 0:02:02]} 20. g4 {[%clk 0:02:28]}  Bxg4 {[%clk 0:02:00]} 21. Bxe4 {[%clk 0:02:29]}  d5 {[%clk 0:02:00]} 22. Bd3 {[%clk 0:02:28]}  Rb4 {[%clk 0:01:55]} 23. Ba6 {[%clk 0:02:16]}  Ra8 {[%clk 0:01:17]} 24. Rxc6 {[%clk 0:02:13]}  Bxd4 {[%clk 0:01:17]} 25. Bd2 {[%clk 0:02:08]}  Rb6 {[%clk 0:01:14]} 26. Bc8+ {[%clk 0:02:07]}  Rxc8 {[%clk 0:01:07]} 27. Rxc8 {[%clk 0:02:08]}  Bxe2 {[%clk 0:01:02]} 28. R1c7+ {[%clk 0:02:07]}  Kd6 {[%clk 0:00:43]} 29. Bf4+ {[%clk 0:02:07]}  Ke6 {[%clk 0:00:28]} 30. Re8+ {[%clk 0:02:07]}  Kf5 {[%clk 0:00:27]} 31. Rxf7+ {[%clk 0:02:07]}  Bf6 {[%clk 0:00:25]} 32. Be5 {[%clk 0:02:03]}  Bf3 {[%clk 0:00:16]} 33. Rxf6+ {[%clk 0:02:03]}  Rxf6 {[%clk 0:00:16]} 34. Bxf6 {[%clk 0:02:04]}  Kxf6 {[%clk 0:00:17]} 35. Rf8+ {[%clk 0:02:05]}  Ke5 {[%clk 0:00:17]} 36. Rxf3 {[%clk 0:02:06]}  Ke4 {[%clk 0:00:18]} 37. Re3+ {[%clk 0:02:06]}  Kd4 {[%clk 0:00:18]} 38. Kf1 {[%clk 0:02:07]} 1-0


[Site "https://www.chess.com"]

[Event "Titled Tuesday Blitz August 31 2021"]
[White "Viani Antonio Dcunha"]
[Black "Guliev, Logman"]
[WhiteFideId "5027330"]
[BlackFideId "13400061"]
[WhiteElo "2366"]
[BlackElo "2128"]
[Result "1-0"]
[Round "07"]
[TimeControl "180+1"]
[Date "2021.08.31"]
[WhiteClock "0:00:13"]
[BlackClock "0:00:02"]

1. d4 {[%clk 0:02:36]}  Nf6 {[%clk 0:02:58]} 2. c4 {[%clk 0:02:36]}  e6 {[%clk 0:02:58]} 3. Nc3 {[%clk 0:02:35]}  Bb4 {[%clk 0:02:58]} 4. Nf3 {[%clk 0:02:31]}  O-O {[%clk 0:02:59]} 5. Qc2 {[%clk 0:02:29]}  d5 {[%clk 0:02:56]} 6. e3 {[%clk 0:02:28]}  Ne4 {[%clk 0:02:51]} 7. Bd3 {[%clk 0:02:25]}  f5 {[%clk 0:02:44]} 8. O-O {[%clk 0:02:20]}  Bxc3 {[%clk 0:02:39]} 9. bxc3 {[%clk 0:02:20]}  c6 {[%clk 0:02:39]} 10. Ne5 {[%clk 0:02:13]}  Nd7 {[%clk 0:02:37]} 11. Nxd7 {[%clk 0:02:06]}  Bxd7 {[%clk 0:02:36]} 12. f3 {[%clk 0:02:05]}  Nd6 {[%clk 0:02:10]} 13. c5 {[%clk 0:01:54]}  Nf7 {[%clk 0:02:05]} 14. e4 {[%clk 0:01:53]}  fxe4 {[%clk 0:01:58]} 15. fxe4 {[%clk 0:01:54]}  Qh4 {[%clk 0:01:45]} 16. Be3 {[%clk 0:01:29]}  Ng5 {[%clk 0:01:38]} 17. exd5 {[%clk 0:01:23]}  exd5 {[%clk 0:01:37]} 18. Bxg5 {[%clk 0:01:23]}  Qxg5 {[%clk 0:01:37]} 19. Bxh7+ {[%clk 0:01:22]}  Kh8 {[%clk 0:01:38]} 20. Qd3 {[%clk 0:01:18]}  Rae8 {[%clk 0:01:29]} 21. Bg6 {[%clk 0:01:13]}  Rd8 {[%clk 0:01:17]} 22. Rae1 {[%clk 0:01:07]}  Rf4 {[%clk 0:01:05]} 23. Rxf4 {[%clk 0:01:01]}  Qxf4 {[%clk 0:01:06]} 24. Qe3 {[%clk 0:00:49]}  Qf6 {[%clk 0:00:56]} 25. Qe7 {[%clk 0:00:46]}  Bg4 {[%clk 0:00:37]} 26. h3 {[%clk 0:00:34]}  Bc8 {[%clk 0:00:27]} 27. Re5 {[%clk 0:00:31]}  Kg8 {[%clk 0:00:04]} 28. g4 {[%clk 0:00:14]}  Rf8 {[%clk 0:00:03]} 29. Qxf6 {[%clk 0:00:13]}  gxf6 {[%clk 0:00:02]} 30. Re7 {[%clk 0:00:13]} 1-0


[Site "https://www.chess.com"]

[Event "Titled Tuesday Blitz August 31 2021"]
[White "Visakh N R"]
[Black "Ovezdurdyyeva, Jemal"]
[WhiteFideId "25012223"]
[BlackFideId "14001888"]
[WhiteElo "2428"]
[BlackElo "1946"]
[Result "1/2-1/2"]
[Round "07"]
[TimeControl "180+1"]
[Date "2021.08.31"]
[WhiteClock "0:01:56"]
[BlackClock "0:00:13"]

1. c4 {[%clk 0:03:00]}  Nf6 {[%clk 0:02:52]} 2. Nc3 {[%clk 0:02:58]}  g6 {[%clk 0:02:50]} 3. g3 {[%clk 0:02:58]}  Bg7 {[%clk 0:02:51]} 4. Bg2 {[%clk 0:02:58]}  d6 {[%clk 0:02:52]} 5. Nf3 {[%clk 0:02:58]}  O-O {[%clk 0:02:51]} 6. O-O {[%clk 0:02:58]}  Nc6 {[%clk 0:02:49]} 7. Rb1 {[%clk 0:02:56]}  a5 {[%clk 0:02:29]} 8. a3 {[%clk 0:02:52]}  e5 {[%clk 0:02:22]} 9. d3 {[%clk 0:02:51]}  Re8 {[%clk 0:02:19]} 10. Bg5 {[%clk 0:02:45]}  h6 {[%clk 0:02:14]} 11. Bxf6 {[%clk 0:02:44]}  Bxf6 {[%clk 0:02:12]} 12. Nd2 {[%clk 0:02:45]}  Bg7 {[%clk 0:02:10]} 13. b4 {[%clk 0:02:44]}  axb4 {[%clk 0:02:06]} 14. axb4 {[%clk 0:02:45]}  e4 {[%clk 0:01:27]} 15. Nd5 {[%clk 0:02:32]}  exd3 {[%clk 0:01:20]} 16. exd3 {[%clk 0:02:33]}  Bf5 {[%clk 0:01:17]} 17. Ne4 {[%clk 0:02:31]}  Nd4 {[%clk 0:01:11]} 18. Re1 {[%clk 0:02:26]}  c6 {[%clk 0:01:05]} 19. Nef6+ {[%clk 0:02:25]}  Qxf6 {[%clk 0:00:52]} 20. Nxf6+ {[%clk 0:02:22]}  Bxf6 {[%clk 0:00:53]} 21. Qd2 {[%clk 0:02:21]}  Rxe1+ {[%clk 0:00:46]} 22. Rxe1 {[%clk 0:02:16]}  Kg7 {[%clk 0:00:42]} 23. h4 {[%clk 0:02:12]}  Ra3 {[%clk 0:00:36]} 24. Re3 {[%clk 0:02:05]}  Nb3 {[%clk 0:00:21]} 25. Qe2 {[%clk 0:02:03]}  Ra1+ {[%clk 0:00:20]} 26. Kh2 {[%clk 0:02:02]}  Nd4 {[%clk 0:00:16]} 27. Qd2 {[%clk 0:01:59]}  Nb3 {[%clk 0:00:15]} 28. Qe2 {[%clk 0:01:56]}  Nd4 {[%clk 0:00:14]} 29. Qd2 {[%clk 0:01:56]}  Nb3 {[%clk 0:00:13]} 1/2-1/2


[Site "https://www.chess.com"]